bitfinex/quotes_SOLUSD_20240912
["timestamp","ask_amount","ask_price","bid_price","bid_amount"]
[1726167941004,0.25098,135.64,135.57,20.0]
[1726167941316,23.776884,135.63,135.57,20.0]
[1726167941517,0.25098,135.62,135.57,20.0]
[1726167942028,2.09488152,135.62,135.56,15.645]
[1726167942207,23.776884,135.61,135.55,14.6394116]
[1726167942411,23.776884,135.59,135.55,14.6394116]
[1726167942998,23.776884,135.59,135.56,14.6394116]
[1726167945434,23.776884,135.59,135.56,20.0]
[1726167946424,23.776884,135.59,135.56,14.6394116]
[1726167950110,23.902374,135.6,135.53,20.0]
[1726167950326,23.776884,135.58,135.53,34.6394116]
[1726167950532,0.25098,135.57,135.53,34.6394116]
[1726167951214,0.12549,135.57,135.53,34.6394116]
[1726167951524,23.776884,135.6,135.56,14.6394116]
[1726167951733,0.25098,135.59,135.55,14.6394116]
[1726167952315,0.25098,135.59,135.54,14.6394116]
[1726167952926,0.25098,135.59,135.53,34.6394116]
[1726167954826,0.25098,135.59,135.53,20.0]
[1726167955018,0.25098,135.59,135.54,14.6394116]
[1726167955525,0.25098,135.59,135.53,34.6394116]
[1726167955526,23.776884,135.58,135.53,34.6394116]
[1726167955732,0.25098,135.57,135.53,34.6394116]
[1726167959035,0.25098,135.57,135.53,14.6394116]
[1726167959241,23.776884,135.56,135.51,20.2544787]
[1726167959538,23.776884,135.54,135.51,0.2544787]
[1726167961137,23.776884,135.52,135.51,0.2544787]
[1726167961339,24.027864,135.52,135.51,0.2544787]
[1726167969432,15.8987,135.55,135.51,0.2544787]
[1726167970954,24.027864,135.54,135.51,0.2544787]
[1726167973552,15.6825,135.58,135.52,14.6394116]
[1726167973731,15.6825,135.58,135.53,14.6394116]
[1726167974852,15.6825,135.58,135.52,14.6394116]
[1726167975236,1.8443992,135.57,135.51,14.8938903]
[1726167975450,0.12549,135.56,135.51,14.8938903]
[1726167976560,23.902374,135.56,135.51,14.8938903]
[1726167977334,23.902374,135.56,135.52,14.6394116]
[1726167977534,0.12549,135.56,135.52,14.6394116]
[1726167977750,0.25098,135.56,135.52,14.6394116]
[1726167978454,0.25098,135.56,135.53,14.6394116]
[1726167981059,0.25098,135.56,135.52,14.6394116]
[1726167981461,0.25098,135.56,135.53,14.6394116]
[1726167982043,0.25098,135.56,135.52,14.6394116]
[1726167986855,0.25098,135.56,135.54,14.6394116]
[1726167987157,6.3643,135.63,135.55,14.6394116]
[1726167987468,6.3643,135.63,135.56,14.6394116]
[1726167987646,21.5389,135.63,135.56,14.6394116]
[1726167987846,1.84403832,135.62,135.56,14.6394116]
[1726167988061,21.5389,135.63,135.56,14.6394116]
[1726167988569,24.027864,135.62,135.56,14.6394116]
[1726167988771,25.87189857,135.62,135.55,14.6394116]
[1726167989470,25.87189857,135.62,135.53,20.0]
[1726167989656,23.776884,135.6,135.53,20.0]
[1726167989858,2.09530218,135.59,135.53,20.0]
[1726167990049,23.776884,135.58,135.53,20.0]
[1726167990251,23.776884,135.56,135.53,20.0]
[1726167991883,23.776884,135.56,135.53,34.6394116]
[1726167995292,23.776884,135.56,135.54,14.6394116]
[1726167995676,23.776884,135.56,135.53,34.6394116]
[1726167998577,23.776884,135.56,135.52,14.6394116]
[1726167998883,23.776884,135.56,135.53,20.0]
[1726168000598,23.776884,135.56,135.51,0.2544787]
[1726168000898,23.776884,135.54,135.51,0.2544787]
[1726168001203,0.25098,135.55,135.52,14.6394116]
[1726168002302,0.25098,135.55,135.53,14.6394116]
[1726168002466,0.25098,135.55,135.52,14.6394116]
[1726168003080,23.776884,135.57,135.54,14.6394116]
[1726168003290,23.776884,135.57,135.55,14.6394116]
[1726168005871,16.6051,135.61,135.55,14.6394116]
[1726168006196,1.84399627,135.6,135.55,14.6394116]
[1726168007304,24.027864,135.59,135.55,14.6394116]
[1726168007983,1.84408027,135.58,135.54,14.6394116]
[1726168008193,25.87228404,135.57,135.53,20.0]
[1726168008500,25.87228404,135.57,135.52,20.0]
[1726168008702,24.027864,135.57,135.52,34.6394116]
[1726168013788,24.027864,135.57,135.51,14.8938903]
[1726168013989,24.027864,135.57,135.52,20.0]
[1726168016107,0.25098,135.57,135.52,20.0]
[1726168016287,23.776884,135.56,135.52,20.0]
[1726168016489,23.776884,135.54,135.51,0.2544787]
[1726168016681,23.776884,135.52,135.51,0.2544787]
[1726168017030,24.027864,135.52,135.51,0.2544787]
[1726168025233,30.668864,135.52,135.51,0.2544787]
[1726168025913,96.094464,135.52,135.51,0.2544787]
[1726168026291,52.63521619,135.53,135.47,0.2544787]
[1726168026292,52.041084,135.48,135.47,0.2544787]
[1726168026612,52.041084,135.48,135.43,0.2544787]
[1726168026613,94.36,135.47,135.43,0.2544787]
[1726168026818,23.776884,135.45,135.43,0.2544787]
[1726168027118,25.87436929,135.44,135.43,0.2544787]
[1726168030029,25.87452893,135.44,135.43,0.2544787]
[1726168030329,24.027864,135.44,135.43,0.2544787]
[1726168031719,23.902374,135.44,135.43,0.2544787]
[1726168032328,23.46752437,135.48,135.43,0.2544787]
[1726168032329,21.6212,135.48,135.43,0.2544787]
[1726168033518,23.776884,135.47,135.43,0.2544787]
[1726168033718,0.25098,135.46,135.43,0.2544787]
[1726168034641,0.12549,135.46,135.43,0.2544787]
[1726168035040,66.6527,135.51,135.43,0.2544787]
[1726168035226,16.6527,135.51,135.44,14.6394116]
[1726168036436,23.776884,135.5,135.44,14.6394116]
[1726168036746,0.25098,135.49,135.44,14.6394116]
[1726168041348,0.25098,135.49,135.45,14.6394116]
[1726168042228,0.25098,135.49,135.44,30.9538116]
[1726168044253,0.25098,135.49,135.45,14.6394116]
[1726168044455,0.25098,135.49,135.46,14.6394116]
[1726168044635,0.25098,135.49,135.45,6.1457]
[1726168047547,0.25098,135.49,135.45,20.7851116]
[1726168049460,15.156,135.54,135.47,14.6394116]
[1726168049631,23.776884,135.53,135.48,14.6394116]
[1726168050043,22.4241787,135.57,135.48,14.6394116]
[1726168050263,1.84493209,135.56,135.48,14.6394116]
[1726168051141,0.12549,135.55,135.48,14.6394116]
[1726168051339,25.8727977,135.55,135.48,14.6394116]
[1726168051837,25.8727977,135.55,135.47,14.6394116]
[1726168052043,25.8727977,135.55,135.46,34.6394116]
[1726168052243,25.8727977,135.55,135.47,14.6394116]
[1726168055144,32.5123977,135.55,135.46,34.6394116]
[1726168055644,32.5123977,135.55,135.47,14.6394116]
[1726168056256,25.8727977,135.55,135.47,14.6394116]
[1726168056551,32.5123977,135.55,135.47,14.6394116]
[1726168057135,25.8727977,135.55,135.47,14.6394116]
[1726168059543,25.8727977,135.55,135.48,14.6394116]
[1726168060259,0.25098,135.55,135.49,14.6394116]
[1726168060461,0.25098,135.55,135.46,20.0]
[1726168060462,0.25098,135.55,135.5,14.6394116]
[1726168061142,0.25098,135.55,135.51,14.6394116]
[1726168062347,15.7853787,135.57,135.46,20.0]
[1726168062348,0.2544787,135.57,135.53,14.6394116]
[1726168062661,0.2544787,135.57,135.55,14.6394116]
[1726168063235,0.2544787,135.57,135.54,14.6394116]
[1726168064744,24.0313627,135.57,135.53,14.6394116]
[1726168065902,1.84427029,135.56,135.52,29.8978116]
[1726168066084,24.027864,135.55,135.51,20.0]
[1726168067265,0.25098,135.55,135.51,20.0]
[1726168067465,23.776884,135.54,135.51,20.0]
[1726168067689,23.776884,135.54,135.51,34.6394116]
[1726168068074,23.776884,135.54,135.51,20.0]
[1726168068798,23.776884,135.54,135.51,14.6394116]
[1726168072995,23.776884,135.54,135.5,14.6394116]
[1726168073195,23.776884,135.54,135.51,14.6394116]
[1726168075883,23.776884,135.54,135.52,14.6394116]
[1726168077203,0.2544787,135.57,135.53,14.6394116]
[1726168077382,0.2544787,135.57,135.54,14.6394116]
[1726168077579,0.2544787,135.57,135.55,14.6394116]
[1726168078102,0.2544787,135.57,135.52,6.6212]
[1726168078103,0.2544787,135.57,135.56,14.6394116]
[1726168078493,0.2544787,135.57,135.55,14.6394116]
[1726168079010,0.2544787,135.57,135.56,14.6394116]
[1726168079394,0.2544787,135.57,135.55,14.6394116]
[1726168080200,0.2544787,135.57,135.54,14.6394116]
[1726168080688,0.2544787,135.57,135.52,6.6212]
[1726168080689,0.2544787,135.57,135.55,14.6394116]
[1726168080887,0.2544787,135.57,135.56,14.6394116]
[1726168081502,0.2544787,135.57,135.56,34.6394116]
[1726168082209,0.2544787,135.62,135.56,34.6394116]
[1726168082379,0.2544787,135.62,135.53,16.4056]
[1726168082380,0.2544787,135.62,135.61,14.6394116]
[1726168084087,0.2544787,135.62,135.61,34.6394116]
[1726168086885,0.2544787,135.66,135.62,20.0]
[1726168087210,0.2544787,135.66,135.65,14.6394116]
[1726168087788,0.2544787,135.7,135.65,34.6394116]
[1726168087994,0.2544787,135.7,135.64,16.5936]
[1726168087995,0.2544787,135.7,135.69,14.6394116]
[1726168089008,0.2544787,135.7,135.65,20.0]
[1726168089215,0.2544787,135.7,135.67,20.0]
[1726168089387,0.2544787,135.7,135.65,20.0]
[1726168089694,0.12549,135.69,135.65,20.0]
[1726168089899,0.25098,135.69,135.65,14.6394116]
[1726168090099,0.25098,135.69,135.64,20.0]
[1726168091410,23.776884,135.68,135.64,20.0]
[1726168092690,0.25098,135.67,135.64,20.0]
[1726168097396,23.776884,135.68,135.64,20.0]
[1726168099312,25.61972266,135.68,135.64,20.0]
[1726168100204,23.776884,135.66,135.62,20.0]
[1726168101512,24.027864,135.67,135.62,20.0]
[1726168102111,0.25098,135.67,135.64,20.0]
[1726168103002,23.776884,135.68,135.64,20.0]
[1726168106807,0.2544787,135.7,135.67,22.87319666]
[1726168107630,0.2544787,135.7,135.68,20.0]
[1726168115923,0.2544787,135.7,135.69,22.87319666]
[1726168118948,0.2544787,135.7,135.69,42.87319666]
[1726168119446,0.2544787,135.74,135.7,20.0]
[1726168119633,0.2544787,135.74,135.72,22.87319666]
[1726168122329,0.2544787,135.74,135.73,0.9774168]
[1726168122727,0.2544787,135.74,135.72,22.87319666]
[1726168127637,0.2544787,135.78,135.72,22.87319666]
[1726168127638,25.62726303,135.78,135.72,22.87319666]
[1726168127954,0.25098,135.77,135.72,22.87319666]
[1726168129058,23.7858414,135.78,135.72,22.87319666]
[1726168130249,23.7858414,135.78,135.75,14.61742008]
[1726168130554,23.7858414,135.78,135.77,14.61742008]
[1726168130755,0.0089574,135.78,135.77,14.61742008]
[1726168131061,0.0089574,135.78,135.76,14.61742008]
[1726168131357,0.0089574,135.78,135.77,14.61742008]
[1726168132150,0.0089574,135.78,135.76,20.0]
[1726168133750,0.0089574,135.78,135.75,22.83296818]
[1726168135372,0.0089574,135.78,135.77,22.83296818]
[1726168139253,0.0089574,135.78,135.77,42.83296818]
[1726168142048,0.2544787,135.82,135.77,42.83296818]
[1726168142049,23.776884,135.82,135.77,42.83296818]
[1726168142261,0.25098,135.81,135.77,42.83296818]
[1726168142646,0.25098,135.81,135.73,22.83296818]
[1726168142647,15.1627361,135.83,135.79,22.83296818]
[1726168143554,0.2544787,135.86,135.79,22.83296818]
[1726168143771,0.2544787,135.86,135.81,22.83296818]
[1726168143948,6.4576,135.87,135.81,22.83296818]
[1726168143949,8.29826263,135.87,135.81,22.83296818]
[1726168144147,0.2214005,135.86,135.81,22.83296818]
[1726168145075,23.9982845,135.86,135.81,22.83296818]
[1726168145769,0.25098,135.85,135.81,22.83296818]
[1726168146550,0.25098,135.85,135.78,42.83296818]
[1726168149949,23.776884,135.84,135.78,20.0]
[1726168150157,23.776884,135.82,135.76,20.0]
[1726168150358,2.09204045,135.81,135.76,20.0]
[1726168150575,23.776884,135.8,135.75,6.4023463]
[1726168150877,23.776884,135.78,135.75,0.0715463]
[1726168151864,23.776884,135.76,135.75,0.0715463]
[1726168152057,24.027864,135.76,135.75,0.0715463]
[1726168156388,108.0890904,135.82,135.75,14.6953327]
[1726168156389,15.8038,135.81,135.75,14.6953327]
[1726168157058,15.8038,135.81,135.75,0.0715463]
[1726168157660,23.902374,135.8,135.75,0.0715463]
[1726168157968,24.027864,135.8,135.75,0.0715463]
[1726168158866,23.776884,135.78,135.75,0.0715463]
[1726168159058,0.25098,135.77,135.75,0.0715463]
[1726168162061,23.776884,135.76,135.75,0.0715463]
[1726168162261,24.027864,135.76,135.75,0.0715463]
[1726168164075,15.8038,135.81,135.75,0.0715463]
[1726168164779,17.64512557,135.81,135.75,0.0715463]
[1726168165367,15.8038,135.81,135.75,0.0715463]
[1726168166391,24.027864,135.8,135.75,0.0715463]
[1726168171392,23.776884,135.78,135.75,0.0715463]
[1726168171798,23.776884,135.76,135.75,0.0715463]
[1726168171999,24.027864,135.76,135.75,0.0715463]
[1726168172297,23.776884,135.76,135.75,0.0715463]
[1726168174886,15.8038,135.81,135.75,0.0715463]
[1726168175091,24.027864,135.8,135.75,0.0715463]
[1726168175293,1.84143752,135.79,135.75,0.0715463]
[1726168175481,24.027864,135.78,135.75,0.0715463]
[1726168185110,23.776884,135.76,135.75,0.0715463]
[1726168186113,24.027864,135.76,135.75,0.0715463]
[1726168204337,70.41222869,135.76,135.75,0.0715463]
[1726168204546,70.41222869,135.76,135.68,16.0213]
[1726168204547,6.3474,135.75,135.72,0.255585]
[1726168204844,6.3474,135.75,135.68,0.2507913]
[1726168204845,23.776884,135.72,135.68,0.2507913]
[1726168205052,23.776884,135.7,135.68,0.2507913]
[1726168205543,23.776884,135.75,135.68,0.2507913]
[1726168205741,23.776884,135.73,135.68,0.2507913]
[1726168205955,0.25098,135.72,135.68,0.2507913]
[1726168206348,23.776884,135.71,135.68,0.2507913]
[1726168207550,1.84240125,135.7,135.68,0.2507913]
[1726168207753,23.776884,135.69,135.68,0.2507913]
[1726168208865,24.027864,135.69,135.68,0.2507913]
[1726168211450,66.6621,135.76,135.68,0.2507913]
[1726168211673,1.84258042,135.74,135.68,0.2507913]
[1726168211847,1.84245429,135.73,135.68,0.2507913]
[1726168212860,24.027864,135.72,135.68,0.2507913]
[1726168213273,23.776884,135.7,135.68,0.2507913]
[1726168213449,0.25098,135.69,135.68,0.2507913]
[1726168213771,23.776884,135.7,135.68,0.2507913]
[1726168216669,15.6927,135.76,135.68,34.87062915]
[1726168216845,57.3158,135.78,135.68,34.87062915]
[1726168216846,6.3474,135.78,135.7,14.61983785]
[1726168217166,22.5898,135.79,135.7,14.61983785]
[1726168217550,15.9618,135.79,135.7,14.61983785]
[1726168217747,15.9618,135.79,135.71,14.61983785]
[1726168218074,13.3915913,135.82,135.72,14.61983785]
[1726168218272,30.0042913,135.82,135.72,14.61983785]
[1726168218468,1.84171925,135.81,135.73,51.06923785]
[1726168218659,1.84171925,135.81,135.73,31.06923785]
[1726168219279,1.84171925,135.81,135.73,16.4494]
[1726168219977,1.84171925,135.81,135.71,14.61983785]
[1726168219978,23.776884,135.78,135.71,20.0]
[1726168220274,0.12549,135.77,135.7,16.0526]
[1726168220454,0.12549,135.75,135.7,16.0526]
[1726168220779,23.902374,135.76,135.71,20.0]
[1726168220975,23.776884,135.74,135.71,20.0]
[1726168221361,23.902374,135.76,135.71,20.0]
[1726168221662,23.776884,135.74,135.71,20.0]
[1726168223673,0.12549,135.76,135.72,14.61983785]
[1726168225087,23.776884,135.81,135.74,14.61983785]
[1726168225393,23.3777913,135.82,135.74,14.61983785]
[1726168225571,1.84150014,135.8,135.73,14.61983785]
[1726168225770,1.84149402,135.79,135.73,20.0]
[1726168225973,52.2243913,135.82,135.73,20.0]
[1726168226265,1.84166344,135.81,135.73,20.0]
[1726168226588,23.776884,135.79,135.73,14.61983785]
[1726168226792,23.776884,135.77,135.72,14.61983785]
[1726168226972,0.25098,135.76,135.73,20.0]
[1726168227486,0.25098,135.76,135.72,14.61983785]
[1726168227884,0.25098,135.76,135.73,20.0]
[1726168229272,23.776884,135.77,135.73,20.0]
[1726168229890,23.776884,135.77,135.73,34.61983785]
[1726168230188,23.776884,135.77,135.74,14.61983785]
[1726168230364,16.8634913,135.82,135.76,14.61983785]
[1726168230569,0.12549,135.81,135.75,14.61983785]
[1726168231070,0.12549,135.81,135.74,14.61983785]
[1726168231270,0.12549,135.81,135.75,20.0]
[1726168231678,24.027864,135.81,135.75,20.0]
[1726168233796,0.2507913,135.82,135.77,14.61983785]
[1726168234490,0.2507913,135.82,135.76,34.61983785]
[1726168235271,23.902374,135.81,135.76,20.0]
[1726168235487,0.12549,135.8,135.76,20.0]
[1726168235695,23.776884,135.79,135.76,20.0]
[1726168235894,0.25098,135.78,135.76,20.0]
[1726168236591,0.12549,135.78,135.76,20.0]
[1726168236897,23.776884,135.79,135.76,20.0]
[1726168239274,23.776884,135.79,135.76,34.61983785]
[1726168239482,0.2507913,135.82,135.77,14.61983785]
[1726168239999,0.2507913,135.82,135.78,14.61983785]
[1726168240202,0.2507913,135.82,135.77,14.61983785]
[1726168240375,0.2507913,135.82,135.76,34.61983785]
[1726168240577,0.2507913,135.82,135.78,14.61983785]
[1726168241004,0.2507913,135.82,135.77,14.61983785]
[1726168241601,24.0276753,135.82,135.77,14.61983785]
[1726168242201,24.0276753,135.82,135.78,20.0]
[1726168242586,0.2507913,135.82,135.78,34.61983785]
[1726168242893,0.2507913,135.82,135.8,14.61983785]
[1726168243899,0.2507913,135.82,135.81,1.47120723]
[1726168244473,0.2507913,135.82,135.81,16.09104508]
[1726168244674,0.2507913,135.82,135.81,34.61983785]
[1726168244906,0.2507913,135.82,135.81,20.0]
[1726168245072,0.2507913,135.82,135.79,20.0]
[1726168248187,0.2507913,135.82,135.75,22.6066]
[1726168248381,0.2507913,135.82,135.77,20.0]
[1726168249001,0.25098,135.81,135.77,20.0]
[1726168249183,0.12549,135.81,135.77,20.0]
[1726168249486,0.2507913,135.82,135.77,34.61983785]
[1726168249691,0.2507913,135.82,135.78,14.61983785]
[1726168250685,0.2507913,135.82,135.77,14.61983785]
[1726168250902,0.2507913,135.82,135.78,20.0]
[1726168252203,0.2507913,135.82,135.76,20.0]
[1726168255192,0.25098,135.81,135.76,20.0]
[1726168260312,0.25098,135.81,135.76,34.61983785]
[1726168260899,0.2507913,135.82,135.78,14.61983785]
[1726168261211,0.2507913,135.82,135.77,14.61983785]
[1726168261413,0.2507913,135.82,135.78,20.0]
[1726168261919,0.2507913,135.82,135.76,34.61983785]
[1726168263524,0.2507913,135.82,135.76,20.0]
[1726168264027,0.2507913,135.82,135.76,34.61983785]
[1726168270139,0.2507913,135.82,135.77,14.61983785]
[1726168270517,0.2507913,135.82,135.78,20.0]
[1726168270724,0.2507913,135.82,135.76,34.61983785]
[1726168271612,0.2507913,135.82,135.76,20.0]
[1726168271613,2.09154228,135.82,135.76,20.0]
[1726168271920,23.902374,135.81,135.76,20.0]
[1726168272122,23.902374,135.81,135.76,34.61983785]
[1726168272433,23.776884,135.81,135.76,34.61983785]
[1726168272632,0.2507913,135.82,135.76,34.61983785]
[1726168272835,0.2507913,135.82,135.79,14.61983785]
[1726168273015,0.2507913,135.82,135.8,20.0]
[1726168274838,0.2507913,135.82,135.8,34.61983785]
[1726168275144,0.2507913,135.82,135.81,35.79302979]
[1726168275845,0.2507913,135.82,135.81,21.17319194]
[1726168276013,0.2507913,135.82,135.81,20.0]
[1726168278346,0.2507913,135.82,135.78,20.0]
[1726168284338,0.2507913,135.82,135.78,29.17473185]
[1726168284544,0.2507913,135.82,135.78,20.0]
[1726168287162,23.776884,135.81,135.78,20.0]
[1726168287654,24.0276753,135.82,135.78,20.0]
[1726168289430,24.0276753,135.82,135.76,20.0]
[1726168292645,40.1195753,135.82,135.75,20.0]
[1726168292948,0.25098,135.81,135.75,20.0]
[1726168295659,0.25098,135.81,135.74,14.61983785]
[1726168295660,23.776884,135.8,135.74,20.0]
[1726168296739,23.776884,135.78,135.74,20.0]
[1726168297241,23.776884,135.78,135.71,30.93123785]
[1726168297242,23.776884,135.78,135.72,20.0]
[1726168297550,23.776884,135.78,135.7,14.61983785]
[1726168297551,23.776884,135.78,135.71,20.0]
[1726168297758,0.12549,135.77,135.69,28.37055319]
[1726168298062,0.12549,135.77,135.69,13.75071534]
[1726168298063,23.776884,135.76,135.69,13.75071534]
[1726168298239,23.776884,135.76,135.7,14.61983785]
[1726168299333,23.776884,135.76,135.71,20.0]
[1726168301552,23.776884,135.76,135.71,34.61983785]
[1726168303565,23.776884,135.76,135.72,14.61983785]
[1726168303951,23.776884,135.76,135.73,20.0]
[1726168304265,16.5731,135.77,135.73,20.0]
[1726168305544,16.5731,135.77,135.73,34.61983785]
[1726168305865,22.5025,135.81,135.75,20.0]
[1726168306447,1.84123154,135.8,135.75,20.0]
[1726168306649,22.5025,135.81,135.74,34.61983785]
[1726168307043,23.776884,135.8,135.74,34.61983785]
[1726168308757,23.776884,135.8,135.72,34.61983785]
[1726168309346,23.776884,135.8,135.76,20.0]
[1726168310141,1.84115399,135.79,135.76,20.0]
[1726168310349,24.027864,135.78,135.76,20.0]
[1726168310543,24.027864,135.78,135.75,30.0]
[1726168311852,40.223684,135.76,135.75,30.0]
[1726168312052,40.474664,135.76,135.75,30.0]
[1726168312761,23.776884,135.75,135.68,30.63442915]
[1726168312957,23.776884,135.75,135.7,20.0]
[1726168313979,23.776884,135.75,135.72,20.0]
[1726168315967,16.4468,135.76,135.72,20.0]
[1726168316179,16.2691,135.79,135.74,20.0]
[1726168317163,16.2691,135.79,135.74,50.0]
[1726168317381,23.776884,135.78,135.74,50.0]
[1726168318060,16.2691,135.79,135.74,50.0]
[1726168318377,0.2507913,135.82,135.77,20.0]
[1726168318378,15.7591913,135.82,135.77,20.0]
[1726168318785,15.7591913,135.82,135.77,50.0]
[1726168319267,15.7591913,135.82,135.77,64.61983785]
[1726168319594,15.7591913,135.82,135.79,20.0]
[1726168319749,15.7591913,135.82,135.79,30.0]
[1726168320270,0.2507913,135.82,135.8,20.0]
[1726168321556,0.2507913,135.82,135.8,50.0]
[1726168324068,0.2507913,135.82,135.8,64.61983785]
[1726168324266,0.2507913,135.82,135.81,34.61983785]
[1726168324572,0.2507913,135.82,135.81,64.61983785]
[1726168331774,0.2507913,135.82,135.81,50.0]
[1726168332685,0.2507913,135.82,135.81,64.61983785]
[1726168334189,0.2507913,135.82,135.81,50.0]
[1726168335695,0.2507913,135.82,135.81,64.61983785]
[1726168336909,0.2507913,135.82,135.81,50.0]
[1726168337402,0.2507913,135.82,135.81,30.0]
[1726168338588,0.2507913,135.82,135.81,50.0]
[1726168338793,0.2507913,135.82,135.81,20.0]
[1726168339005,0.2507913,135.82,135.81,34.61983785]
[1726168339394,0.2507913,135.82,135.81,64.61983785]
[1726168346516,0.2507913,135.82,135.81,73.7945697]
[1726168346692,0.2507913,135.82,135.81,64.61983785]
[1726168349593,0.2507913,135.82,135.79,20.0]
[1726168349793,0.2507913,135.82,135.8,30.0]
[1726168350106,0.2507913,135.82,135.78,14.61983785]
[1726168350422,0.2507913,135.82,135.77,17.57177085]
[1726168350585,0.2507913,135.82,135.78,14.61983785]
[1726168350790,0.2507913,135.82,135.78,44.61983785]
[1726168350991,0.2507913,135.82,135.79,20.0]
[1726168352210,0.2507913,135.82,135.78,20.0]
[1726168353123,0.2507913,135.82,135.75,7.37531534]
[1726168353500,0.2507913,135.82,135.74,14.61983785]
[1726168353714,0.2507913,135.82,135.75,14.61983785]
[1726168354713,0.2507913,135.82,135.76,20.0]
[1726168357426,0.2507913,135.82,135.78,20.0]
[1726168357722,0.2507913,135.82,135.78,14.61983785]
[1726168357927,0.2507913,135.82,135.79,20.0]
[1726168358104,0.2507913,135.82,135.8,0.71060487]
[1726168358305,0.2507913,135.82,135.79,20.0]
[1726168361028,0.2507913,135.82,135.78,20.0]
[1726168362319,0.2507913,135.82,135.79,20.0]
[1726168365109,0.2507913,135.82,135.79,34.61983785]
[1726168372036,0.2507913,135.82,135.76,22.7178]
[1726168372238,0.2507913,135.82,135.78,20.0]
[1726168373317,0.2507913,135.82,135.77,20.0]
[1726168373838,0.2507913,135.82,135.76,20.0]
[1726168376243,0.2507913,135.82,135.76,34.61983785]
[1726168376425,0.2507913,135.82,135.79,20.0]
[1726168376748,0.2507913,135.82,135.8,1.47228596]
[1726168377038,0.2507913,135.82,135.8,1.47221331]
[1726168377822,0.2507913,135.82,135.79,20.0]
[1726168378449,0.2507913,135.82,135.8,20.0]
[1726168378739,0.2507913,135.82,135.8,36.09154416]
[1726168378949,0.2507913,135.82,135.81,34.61983785]
[1726168379120,0.2507913,135.82,135.81,20.0]
[1726168379626,0.2507913,135.82,135.8,20.0]
[1726168380026,0.2507913,135.82,135.79,14.61983785]
[1726168380027,0.2507913,135.82,135.81,43.7945697]
[1726168380231,0.2507913,135.82,135.81,73.9200597]
[1726168380520,0.2507913,135.82,135.81,81.29537504]
[1726168382148,0.2507913,135.82,135.81,72.12064319]
[1726168382825,0.2507913,135.82,135.81,72.24613319]
[1726168385424,0.2507913,135.82,135.81,72.12064319]
[1726168386153,0.2507913,135.82,135.81,37.37531534]
[1726168387148,0.2507913,135.82,135.81,30.0]
[1726168387928,0.2507913,135.82,135.8,32.951354]
[1726168388343,0.2507913,135.82,135.81,20.0]
[1726168390053,0.2507913,135.82,135.8,22.951354]
[1726168390545,0.2507913,135.82,135.8,20.0]
[1726168390742,0.2507913,135.82,135.78,20.0]
[1726168391058,0.2507913,135.82,135.77,21.99515319]
[1726168391059,0.2507913,135.82,135.8,20.0]
[1726168392759,0.2507913,135.82,135.78,20.0]
[1726168392962,0.2507913,135.82,135.77,7.37531534]
[1726168393129,23.776884,135.81,135.74,14.61983785]
[1726168394259,0.2507913,135.82,135.77,20.0]
[1726168394442,0.2507913,135.82,135.77,34.61983785]
[1726168395062,0.2507913,135.82,135.79,34.61983785]
[1726168395924,0.2507913,135.82,135.81,34.61983785]
[1726168398558,0.2507913,135.82,135.81,64.61983785]
[1726168399661,0.2507913,135.82,135.81,50.0]
[1726168399859,0.2507913,135.82,135.81,64.74532785]
[1726168401760,0.2507913,135.82,135.81,50.0]
[1726168403655,0.2507913,135.82,135.81,30.0]
[1726168404083,0.2507913,135.82,135.77,14.61983785]
[1726168404273,0.2507913,135.82,135.78,30.0]
[1726168404886,0.2507913,135.82,135.76,14.61983785]
[1726168405275,0.2507913,135.82,135.77,30.0]
[1726168406987,0.2507913,135.82,135.78,20.0]
[1726168407400,0.2507913,135.82,135.76,20.0]
[1726168408992,24.0276753,135.82,135.76,20.0]
[1726168411782,24.0276753,135.82,135.75,7.37531534]
[1726168413067,24.0276753,135.82,135.76,20.0]
[1726168414085,0.2507913,135.82,135.76,20.0]
[1726168416682,0.2507913,135.82,135.78,20.0]
[1726168419678,0.2507913,135.82,135.79,22.82791409]
[1726168419894,0.2507913,135.82,135.8,20.0]
[1726168422998,0.2507913,135.82,135.81,50.0]
[1726168425387,0.2507913,135.82,135.81,83.05554066]